{"text_format":"1","workbook":"xlsx","n_sheets":4,"sheets":["Turnier","Spielplan Für Halle","Veranstalter","Vereinskürzel"],"not_rendered":{"charts":0,"images":0,"macros":1,"external_links":0,"defined_names":1,"comments":0,"pivot_tables":0},"unopened":[],"bounds":{"document_bytes":16777216,"sheet_cells":100000,"rows_first":2000,"rows_last":500,"rows_between":2000,"halvings":0,"cell_chars":16384,"cell_head_chars":4096},"cells_cut":0,"cells_raw":0,"read":"whole","date_system":"1900"}

{"sheet":"Turnier","index":0,"n_rows":34,"n_cols":24,"rows_kept":34,"cut":false,"hidden":false,"merged":[[20,10,20,12],[21,10,21,12],[22,10,22,12],[19,10,19,12],[17,1,17,2],[17,3,17,4],[18,10,18,12],[19,3,19,4],[19,1,19,2],[18,1,18,2],[18,3,18,4],[0,0,0,16],[2,14,2,16],[1,0,1,2],[2,0,2,2],[1,3,1,16],[2,3,2,4],[2,5,2,8],[2,9,2,11],[6,0,6,3],[7,0,7,3],[20,1,20,2],[27,1,27,2],[16,3,16,4],[16,1,16,2],[8,0,8,3],[11,0,11,3],[9,0,9,3],[10,0,10,3],[20,3,20,4],[21,1,21,2],[21,3,21,4],[33,1,33,4],[22,1,22,2],[23,1,23,2],[24,1,24,2],[25,1,25,2],[22,3,22,4],[23,3,23,4],[24,3,24,4],[25,3,25,4],[30,1,30,4],[29,1,29,4],[31,1,31,4],[32,1,32,4]]}
["Kleinfeldturnier"]
["Veranstalter:"]
["Datum:",null,null,null,null,"Bewerb:",null,null,null,null,null,null,"KAT: "]
["Modus:",null,"U11 / U12 jeweils zwei Sätze bis 20 / U13 - 2 Sätze bis 25"]
[null,null,"Alle Sätze: Auf 2 Punkte Unterschied"]
[null,null,null,null,null,null,null,null,null,null,null,null,null,null,null,null,null,null,"Gruppe A"]
["Gruppe",null,null,null,null,null,null,null,null,null,null,null,null,null,null,null,null,null,"Verein","P","+","-","Koeff."]
[null,null,null,null,null,null,null,null,null,null,null,null,null,null,null,null,null,{"$f":"IF(W8>W11,1,0)+IF(W8>W12,1,0)+IF(W8>W10,1,0)+IF(W8>W9,1,0)","v":0},null,null,null,null,null,5]
[null,null,null,null,null,null,null,null,null,null,null,null,null,null,null,null,null,{"$f":"IF(W9>W12,1,0)+IF(W9>W8,1,0)+IF(W9>W11,1,0)+IF(W9>W10,1,0)","v":0},null,null,null,null,null,4]
[null,null,null,null,null,null,null,null,null,null,null,null,null,null,null,null,null,{"$f":"IF(W10>W8,1,0)+IF(W10>W9,1,0)+IF(W10>W12,1,0)+IF(W10>W11,1,0)","v":0},null,null,null,null,null,3]
[null,null,null,null,null,null,null,null,null,null,null,null,null,null,null,null,null,{"$f":"IF(W11>W8,1,0)+IF(W11>W9,1,0)+IF(W11>W10,1,0)+IF(W11>W12,1,0)","v":0},null,null,null,null,null,2]
[null,null,null,null,null,null,null,null,null,null,null,null,null,null,null,null,null,{"$f":"IF(W12>W8,1,0)+IF(W12>W9,1,0)+IF(W12>W10,1,0)+IF(W12>W11,1,0)","v":0},null,null,null,null,null,1]
[]
[]
["Gruppenspiele:",null,null,null,null,null,null,null,null,null,"Endtabelle Gruppen"]
["Feld","Spielpaarung",null,null,null,null,"Spielpunkte"]
[1,null,null,null,null,null,":",null,null,null,null,null,null,null,null,null,null,{"$f":"IF(F17=0,0,IF(F17>H17,2,IF(F17<H17,0,1)))","v":0},{"$f":"IF(H17=0,0,IF(H17>F17,2,IF(H17<F17,0,1)))","v":0}]
[1,null,null,null,null,null,":",null,null,null,"Gruppe ",null,null,"P","Sp+","Sp-","Diff.",{"$f":"IF(F18=0,0,IF(F18>H18,2,IF(F18<H18,0,1)))","v":0},0]
[1,null,null,null,null,null,":",null,null,"1.",null,null,null,null,null,null,null,0,0]
[1,null,null,null,null,null,":",null,null,"2.",null,null,null,null,null,null,null,0,0]
[1,null,null,null,null,null,":",null,null,"3.",null,null,null,null,null,null,null,0,0]
[1,null,null,null,null,null,":",null,null,"4.",null,null,null,null,null,null,null,0,0]
[1,null,null,null,null,null,":",null,null,"5.",null,null,null,null,null,null,null,0,0]
[1,null,null,null,null,null,":",null,null,null,null,null,null,null,null,null,null,0,0]
[1,null,null,null,null,null,":",null,null,null,null,null,null,null,null,null,null,0,0]
[1,null,null,null,null,null,":",null,null,null,null,null,null,null,null,null,null,0,0]
[]
[null,"Endstand"]
[]
[1,{"$f":"IF(O19=0,\"\",K19)","v":""}]
[2,{"$f":"IF(O20=0,\"\",K20)","v":""}]
[3,{"$f":"IF(O21=0,\"\",K21)","v":""}]
[4,{"$f":"IF(O22=0,\"\",K22)","v":""}]
[5,{"$f":"IF(O23=0,\"\",K23)","v":""}]

{"sheet":"Spielplan Für Halle","index":1,"n_rows":25,"n_cols":13,"rows_kept":25,"cut":false,"hidden":false,"merged":[[13,1,13,4],[14,1,14,4],[15,1,15,4],[16,1,16,4],[17,12,17,15],[14,5,14,8],[15,5,15,8],[16,5,16,8],[17,5,17,8],[17,1,17,4],[14,12,14,15],[15,12,15,15],[16,12,16,15],[13,5,13,8],[13,12,13,15],[11,12,11,15],[12,12,12,15],[2,0,2,6],[3,0,3,6],[4,0,4,6],[5,0,5,6],[8,12,8,15],[9,12,9,15],[10,12,10,15],[10,5,10,8],[11,5,11,8],[12,5,12,8],[1,0,1,3],[24,2,24,5],[19,2,19,3],[19,4,19,5],[20,2,20,5],[21,2,21,5],[22,2,22,5],[23,2,23,5],[10,1,10,4],[11,1,11,4],[12,1,12,4],[6,0,6,6],[8,1,8,4],[9,1,9,4],[8,5,8,8],[9,5,9,8]]}
[{"$f":"A21","v":0},{"$f":"VLOOKUP(A1,$O$8:$P$50,2,FALSE)","v":{"$error":"#N/A"}},{"$f":"B1&\" \"&B21&D21&E21","v":{"$error":"#N/A"}}]
[{"$f":"A22","v":0}]
[{"$f":"A23","v":0}]
[{"$f":"A24","v":0}]
[{"$f":"A25","v":0}]
[{"$f":"Turnier!E11","v":0}]
[{"$f":"Turnier!E12","v":0}]
["Gruppenspiele:",null,null,null,null,null,null,null,null,null,null,null,"Schiedsrichter:"]
[1,{"$f":"Turnier!B17","v":0},null,null,null,{"$f":"Turnier!D17","v":0},null,null,null,null,":",null,{"$f":"A7","v":0}]
[1,{"$f":"Turnier!B18","v":0},null,null,null,{"$f":"Turnier!D18","v":0},null,null,null,null,":",null,{"$f":"A4","v":0}]
[1,{"$f":"Turnier!B19","v":0},null,null,null,{"$f":"Turnier!D19","v":0},null,null,null,null,":",null,{"$f":"A5","v":0}]
[1,{"$f":"Turnier!B20","v":0},null,null,null,{"$f":"Turnier!D20","v":0},null,null,null,null,":",null,{"$f":"A6","v":0}]
[1,{"$f":"Turnier!B21","v":0},null,null,null,{"$f":"Turnier!D21","v":0},null,null,null,null,":",null,{"$f":"A3","v":0}]
[1,{"$f":"Turnier!B22","v":0},null,null,null,{"$f":"Turnier!D22","v":0},null,null,null,null,":",null,{"$f":"A7","v":0}]
[1,{"$f":"Turnier!B23","v":0},null,null,null,{"$f":"Turnier!D23","v":0},null,null,null,null,":",null,{"$f":"A3","v":0}]
[1,{"$f":"Turnier!B24","v":0},null,null,null,{"$f":"Turnier!D24","v":0},null,null,null,null,":",null,{"$f":"A4","v":0}]
[1,{"$f":"Turnier!B25","v":0},null,null,null,{"$f":"Turnier!D25","v":0},null,null,null,null,":",null,{"$f":"A5","v":0}]
[1,{"$f":"Turnier!B26","v":0},null,null,null,{"$f":"Turnier!D26","v":0},null,null,null,null,":",null,{"$f":"A6","v":0}]
[]
[null,null,"Endstand"]
[null,1]
[null,2]
[null,3]
[null,4]
[null,5]

{"sheet":"Veranstalter","index":2,"n_rows":19,"n_cols":2,"rows_kept":19,"cut":false,"hidden":true,"merged":[]}
[]
[]
[null,"Bad Vöslau"]
[null,"Bisamberg"]
[null,"Groß Siegharts"]
[null,"Kilb"]
[null,"Langenlebarn"]
[null,"Oberweiden"]
[null,"Pöchlarn"]
[null,"Purgstall"]
[null,"Scheibbs"]
[null,"Sokol"]
[null,"St. Pölten"]
[null,"Ternitz"]
[null,"Traiskirchen"]
[null,"Waidhofen"]
[null,"Waldviertel"]
[null,"Ybbs"]
[null,"Zwettl"]

{"sheet":"Vereinskürzel","index":3,"n_rows":98,"n_cols":16,"rows_kept":98,"cut":false,"hidden":true,"merged":[]}
[]
[]
[]
[]
[]
[]
[]
[null,null,null,null,null,null,null,null,null,null,null,null,null,null,"Amstetten","VCA"]
[null,null,null,null,null,null,null,null,null,null,null,null,null,null,"Aschbach","UBA"]
[null,null,null,null,null,null,null,null,null,null,null,null,null,null,"Bad Vöslau","JBV"]
[null,null,null,null,null,null,null,null,null,null,null,null,null,null,"Bisamberg","UBI"]
[null,null,null,null,null,null,null,null,null,null,null,null,null,null,"Böheimkirchen","UBÖ"]
[null,null,null,null,null,null,null,null,null,null,null,null,null,null,"Ebreichsdorf","VTR"]
[null,null,null,null,null,null,null,null,null,null,null,null,null,null,"Eschenau","UES"]
[null,null,null,null,null,null,null,null,null,"weiblich","w",null,null,null,"Euratsfeld","EAD"]
[null,null,null,null,null,null,null,null,null,"männlich","m",null,null,null,"Groß-Siegharts","GSH"]
[null,null,null,null,null,null,null,null,null,"mix","x",null,null,null,"GroßSiegharts","GSH"]
[null,null,null,null,null,null,null,null,null,null,null,null,null,null,"Harmannsdorf","HMD"]
[null,null,null,null,null,null,null,null,null,"LK1",null,null,null,null,"Hausmening","ACV"]
[null,null,null,null,null,null,null,null,null,"LK2",null,null,null,null,"Hochneukirchen","UHK"]
[null,null,null,null,null,null,null,null,null,"LK1&2",null,null,null,null,"Hollabrunn","UHB"]
[null,null,null,null,null,null,null,null,null,null,null,null,null,null,"Horn","UHN"]
[null,null,null,null,null,null,null,null,null,"U11x",null,null,null,null,"Kilb","VOR"]
[null,null,null,null,null,null,null,null,null,"U12x",null,null,null,null,"Klosternauburg","VCK"]
[null,null,null,null,null,null,null,null,null,"U13w",null,null,null,null,"Krems","UKD"]
[null,null,null,null,null,null,null,null,null,"U13m",null,null,null,null,"Langenlebarn","ULL"]
[null,null,null,null,null,null,null,null,null,null,null,null,null,null,"Mank","MAN"]
[null,null,null,null,null,null,null,null,null,null,null,null,null,null,"Matzen","MAT"]
[null,null,null,null,null,null,null,null,null,null,null,null,null,null,"Melk","UME"]
[null,null,null,null,null,null,null,null,null,null,null,null,null,null,"Oberweiden","UOW"]
[null,null,null,null,null,null,null,null,null,null,null,null,null,null,"Perchtoldsdorf","PTD"]
[null,null,null,null,null,null,null,null,null,null,null,null,null,null,"Pöchlarn","NLG"]
[null,null,null,null,null,null,null,null,null,null,null,null,null,null,"Purgstall","APU"]
[null,null,null,null,null,null,null,null,null,null,null,null,null,null,"Purkersdorf","PKD"]
[null,null,null,null,null,null,null,null,null,null,null,null,null,null,"Scheibbs","SMS"]
[null,null,null,null,null,null,null,null,null,null,null,null,null,null,"Schottwien","BSW"]
[null,null,null,null,null,null,null,null,null,null,null,null,null,null,"Sokol","SSS"]
[null,null,null,null,null,null,null,null,null,null,null,null,null,null,"St. Pölten","USP"]
[null,null,null,null,null,null,null,null,null,null,null,null,null,null,"Stockerau","UST"]
[null,null,null,null,null,null,null,null,null,null,null,null,null,null,"Südstadt","USS"]
[null,null,null,null,null,null,null,null,null,null,null,null,null,null,"Ternitz","ATT"]
[null,null,null,null,null,null,null,null,null,null,null,null,null,null,"Traiskirchen","VCT"]
[null,null,null,null,null,null,null,null,null,null,null,null,null,null,"Tulln","VCT"]
[null,null,null,null,null,null,null,null,null,null,null,null,null,null,"Waldviertel","URW"]
[null,null,null,null,null,null,null,null,null,null,null,null,null,null,"Waidhofen","UWY"]
[null,null,null,null,null,null,null,null,null,null,null,null,null,null,"Wimpassing","LBV"]
[null,null,null,null,null,null,null,null,null,null,null,null,null,null,"Wr. Neustadt","UWN"]
[null,null,null,null,null,null,null,null,null,null,null,null,null,null,"Wulzeshofen","SUW"]
[null,null,null,null,null,null,null,null,null,null,null,null,null,null,"Ybbs","UYB"]
[null,null,null,null,null,null,null,null,null,null,null,null,null,null,"Zwettl","UZW"]
[null,null,null,null,null,null,null,null,null,null,null,null,null,null,"Freilos","FRL"]
[]
[]
[]
[null,null,null,null,null,null,null,null,null,null,null,null,null,null,"Amstetten","VCA"]
[null,null,null,null,null,null,null,null,null,null,null,null,null,null,"Aschbach","UBA"]
[null,null,null,null,null,null,null,null,null,null,null,null,null,null,"Bad Vöslau","JBV"]
[null,null,null,null,null,null,null,null,null,null,null,null,null,null,"Bisamberg","UBI"]
[null,null,null,null,null,null,null,null,null,null,null,null,null,null,"Böheimkirchen","UBÖ"]
[null,null,null,null,null,null,null,null,null,null,null,null,null,null,"Ebreichsdorf","VTR"]
[null,null,null,null,null,null,null,null,null,null,null,null,null,null,"Eschenau","UES"]
[null,null,null,null,null,null,null,null,null,null,null,null,null,null,"Euratsfeld","EAD"]
[null,null,null,null,null,null,null,null,null,null,null,null,null,null,"Groß-Siegharts","GSH"]
[null,null,null,null,null,null,null,null,null,null,null,null,null,null,"GroßSiegharts","GSH"]
[null,null,null,null,null,null,null,null,null,null,null,null,null,null,"Harmannsdorf","HMD"]
[null,null,null,null,null,null,null,null,null,null,null,null,null,null,"Hausmening","ACV"]
[null,null,null,null,null,null,null,null,null,null,null,null,null,null,"Hochneukirchen","UHK"]
[null,null,null,null,null,null,null,null,null,null,null,null,null,null,"Hollabrunn","UHB"]
[null,null,null,null,null,null,null,null,null,null,null,null,null,null,"Horn","UHN"]
[null,null,null,null,null,null,null,null,null,null,null,null,null,null,"Kilb","VOR"]
[null,null,null,null,null,null,null,null,null,null,null,null,null,null,"Klosternauburg","VCK"]
[null,null,null,null,null,null,null,null,null,null,null,null,null,null,"Krems","UKD"]
[null,null,null,null,null,null,null,null,null,null,null,null,null,null,"Langenlebarn","ULL"]
[null,null,null,null,null,null,null,null,null,null,null,null,null,null,"Mank","MAN"]
[null,null,null,null,null,null,null,null,null,null,null,null,null,null,"Matzen","MAT"]
[null,null,null,null,null,null,null,null,null,null,null,null,null,null,"Melk","UME"]
[null,null,null,null,null,null,null,null,null,null,null,null,null,null,"Oberweiden","UOW"]
[null,null,null,null,null,null,null,null,null,null,null,null,null,null,"Perchtoldsdorf","PTD"]
[null,null,null,null,null,null,null,null,null,null,null,null,null,null,"Pöchlarn","NLG"]
[null,null,null,null,null,null,null,null,null,null,null,null,null,null,"Purgstall","APU"]
[null,null,null,null,null,null,null,null,null,null,null,null,null,null,"Purkersdorf","PKD"]
[null,null,null,null,null,null,null,null,null,null,null,null,null,null,"Scheibbs","SMS"]
[null,null,null,null,null,null,null,null,null,null,null,null,null,null,"Schottwien","BSW"]
[null,null,null,null,null,null,null,null,null,null,null,null,null,null,"Schwechat","SSS"]
[null,null,null,null,null,null,null,null,null,null,null,null,null,null,"St. Pölten","USP"]
[null,null,null,null,null,null,null,null,null,null,null,null,null,null,"Stockerau","UST"]
[null,null,null,null,null,null,null,null,null,null,null,null,null,null,"Südstadt","USS"]
[null,null,null,null,null,null,null,null,null,null,null,null,null,null,"Ternitz","ATT"]
[null,null,null,null,null,null,null,null,null,null,null,null,null,null,"Traiskirchen","VCT"]
[null,null,null,null,null,null,null,null,null,null,null,null,null,null,"Tulln","VCT"]
[null,null,null,null,null,null,null,null,null,null,null,null,null,null,"Waldviertel","UAB"]
[null,null,null,null,null,null,null,null,null,null,null,null,null,null,"Waidhofen","URW"]
[null,null,null,null,null,null,null,null,null,null,null,null,null,null,"Wimpassing","LBV"]
[null,null,null,null,null,null,null,null,null,null,null,null,null,null,"Wr. Neustadt","UWN"]
[null,null,null,null,null,null,null,null,null,null,null,null,null,null,"Wulzeshofen","SUW"]
[null,null,null,null,null,null,null,null,null,null,null,null,null,null,"Ybbs","UYB"]
[null,null,null,null,null,null,null,null,null,null,null,null,null,null,"Zwettl","UZW"]
[null,null,null,null,null,null,null,null,null,null,null,null,null,null,"Freilos","FRL"]